bitfinex-derivatives/quotes_SOLF0:USTF0_20250720
["timestamp","ask_amount","ask_price","bid_price","bid_amount"]
[1752971804346,3.22,177.3,177.26,3.24]
[1752971804850,3.25555089,177.3,177.28,3.24]
[1752971805451,3.22,177.29,177.26,3.24]
[1752971805653,5.11266159,177.28,177.2,3.24]
[1752971806154,1.89266159,177.28,177.26,3.24]
[1752971806950,0.03639652,177.29,177.22,3.24]
[1752971807154,0.03639652,177.29,177.24,3.24]
[1752971807355,1.89266159,177.32,177.24,3.24]
[1752971807552,5.11266159,177.32,177.24,3.24]
[1752971807752,0.04064878,177.28,177.27,8.8778]
[1752971811648,4.92266159,177.34,177.31,3.02]
[1752971812153,10.55856159,177.34,177.31,3.02]
[1752971812358,7.52856159,177.34,177.31,3.02]
[1752971812856,7.52856159,177.34,177.31,3.05861023]
[1752971813057,10.55856159,177.34,177.31,3.05861023]
[1752971813354,3.03,177.33,177.31,3.05861023]
[1752971813850,1.89266159,177.34,177.31,5.67531023]
[1752971814159,3.03,177.34,177.32,3.02]
[1752971816960,3.03,177.33,177.31,0.03861023]
[1752971817459,7.52816159,177.35,177.31,5.67531023]
[1752971817665,3.03,177.34,177.32,3.02]
[1752971819557,1.89266159,177.35,177.32,3.02]
[1752971819759,3.03,177.36,177.32,3.02]
[1752971819961,1.89266159,177.37,177.33,5.6359]
[1752971820162,3.03,177.36,177.34,3.02]
[1752971820858,7.52736159,177.38,177.34,8.6558]
[1752971821058,3.03,177.37,177.35,3.02]
[1752971823761,8.6649,177.37,177.35,3.02]
[1752971824164,3.03,177.36,177.35,3.02]
[1752971824467,3.03,177.37,177.35,3.02]
[1752971824764,16.88645315,177.38,177.35,3.02]
[1752971825262,9.35919156,177.37,177.35,3.02]
[1752971825464,3.03,177.37,177.35,3.02]
[1752971825662,14.99409156,177.37,177.35,3.02]
[1752971825862,8.6649,177.37,177.35,3.02]
[1752971826056,14.99409156,177.37,177.35,3.02]
[1752971826261,3.03,177.36,177.35,3.02]
[1752971826463,11.96409156,177.37,177.35,3.02]
[1752971826662,112.67919156,177.39,177.35,3.02]
[1752971826863,109.64919156,177.39,177.35,3.02]
[1752971827064,3.03,177.38,177.35,3.02]
[1752971827464,14.99359156,177.39,177.35,3.02]
[1752971827664,8.6644,177.39,177.35,3.02]
[1752971828369,3.03,177.39,177.35,3.02]
[1752971828770,3.03,177.39,177.35,8.6552]
[1752971829075,3.03,177.39,177.36,3.02]
[1752971829367,3.03,177.38,177.36,3.02]
[1752971830263,5.6343,177.39,177.34,5.67530584]
[1752971830466,3.03,177.39,177.35,3.02]
[1752971831767,6.32919156,177.42,177.35,3.02]
[1752971832265,9.35919156,177.42,177.35,3.02]
[1752971832669,5.6338,177.41,177.37,5.6346]
[1752971832868,3.03,177.41,177.35,3.02]
[1752971833371,8.6636,177.41,177.38,3.02]
[1752971834770,3.03,177.41,177.38,5.6345]
[1752971834970,3.03,177.41,177.39,3.02]
[1752971835170,8.6634,177.42,177.39,3.02]
[1752971835567,8.6636,177.41,177.39,3.02]
[1752971839276,8.6633,177.42,177.39,3.02]
[1752971840680,5.6333,177.42,177.39,3.02]
[1752971840876,3.15,177.41,177.39,3.02]
[1752971841967,8.7833,177.42,177.4,3.22]
[1752971842871,5.6336,177.41,177.4,3.22]
[1752971843472,8.7836,177.41,177.4,3.22]
[1752971844979,3.15,177.41,177.4,3.22]
[1752971845180,8.7834,177.42,177.4,3.22]
[1752971845481,3.15,177.42,177.4,3.22]
[1752971845680,5.04266159,177.47,177.41,3.22]
[1752971845884,3.15,177.46,177.41,3.22]
[1752971846089,8.7825,177.45,177.41,5.6333]
[1752971846388,8.7825,177.45,177.42,3.25988595]
[1752971846586,8.7821,177.46,177.42,3.25988595]
[1752971847286,5.6323,177.45,177.42,3.25988595]
[1752971847485,8.7823,177.45,177.42,3.25988595]
[1752971847689,3.15,177.45,177.42,3.25988595]
[1752971848687,8.7824,177.45,177.42,3.25988595]
[1752971848885,5.6324,177.45,177.42,3.25988595]
[1752971849088,1.89266159,177.47,177.42,3.25988595]
[1752971849282,5.6328,177.44,177.42,3.25988595]
[1752971850387,5.6325,177.45,177.42,3.25988595]
[1752971850791,3.15,177.46,177.42,3.25988595]
[1752971850986,5.6323,177.45,177.42,5.67298595]
[1752971851187,3.15,177.47,177.42,5.67298595]
[1752971851188,11.92356771,177.48,177.43,3.22]
[1752971851590,5.6321,177.46,177.44,3.22]
[1752971853390,5.6323,177.45,177.44,3.22]
[1752971854590,8.7829,177.43,177.42,3.25988595]
[1752971854788,8.7829,177.43,177.42,0.03988595]
[1752971854983,8.7829,177.43,177.42,3.25988595]
[1752971855986,3.15,177.43,177.42,3.25988595]
[1752971856184,10.67546159,177.44,177.42,3.25988595]
[1752971856588,8.7824,177.45,177.42,3.25988595]
[1752971857392,3.15,177.44,177.42,3.25988595]
[1752971858095,3.15,177.45,177.43,3.22]
[1752971858294,3.15,177.43,177.42,0.03988595]
[1752971858593,3.15,177.43,177.42,3.25988595]
[1752971858790,8.7829,177.43,177.42,3.25988595]
[1752971860394,3.15,177.43,177.42,3.25988595]
[1752971861486,10.67546159,177.44,177.42,3.25988595]
[1752971863095,1.89266159,177.44,177.42,3.25988595]
[1752971863498,5.04266159,177.44,177.42,3.25988595]
[1752971864397,1.89266159,177.44,177.42,3.25988595]
[1752971864695,3.15,177.46,177.43,3.22]
[1752971864898,3.15,177.45,177.43,3.22]
[1752971865289,3.15,177.46,177.43,3.22]
[1752971865697,3.15,177.46,177.44,3.22]
[1752971865895,7.52456159,177.47,177.44,3.22]
[1752971866098,5.04266159,177.47,177.44,3.22]
[1752971866794,5.632,177.46,177.44,3.22]
[1752971866992,8.782,177.46,177.44,3.22]
[1752971867496,5.632,177.46,177.42,0.03988595]
[1752971867801,5.6324,177.45,177.43,3.22]
[1752971868000,8.7824,177.45,177.43,3.22]
[1752971868601,5.632,177.46,177.43,3.22]
[1752971868796,5.04266159,177.47,177.43,3.22]
[1752971869492,10.67466159,177.47,177.43,3.22]
[1752971871001,7.52466159,177.47,177.43,3.22]
[1752971871201,2.99,177.46,177.43,3.22]
[1752971871403,10.51466159,177.47,177.43,3.22]
[1752971872105,5.632,177.46,177.43,3.22]
[1752971872706,10.51446159,177.47,177.43,3.22]
[1752971873202,6.88090612,177.48,177.42,0.03988595]
[1752971873399,8.77356771,177.48,177.44,3.25]
[1752971873606,6.88090612,177.48,177.44,3.25]
[1752971873896,6.88090612,177.48,177.46,5.6319]
[1752971874103,6.88090612,177.48,177.47,3.25]
[1752971877002,9.87090612,177.48,177.47,3.25]
[1752971878203,15.50220612,177.48,177.47,3.25]
[1752971878397,9.87090612,177.48,177.46,0.03619676]
[1752971878601,2.99,177.47,177.46,0.03619676]
[1752971878797,2.99,177.47,177.46,3.28619676]
[1752971879802,8.6217,177.47,177.46,3.28619676]
[1752971880297,8.6217,177.47,177.46,0.03619676]
[1752971880298,10.51436159,177.47,177.46,0.03619676]
[1752971881807,10.51436159,177.47,177.46,3.28619676]
[1752971881999,10.51436159,177.47,177.46,0.03619676]
[1752971883102,10.51436159,177.47,177.46,3.28619676]
[1752971885703,6.88090612,177.48,177.46,3.28619676]
[1752971885903,23.88943614,177.58,177.46,3.28619676]
[1752971885904,6.32919156,177.59,177.48,3.25]
[1752971886109,6.32919156,177.6,177.52,1.89266159]
[1752971886311,2.99,177.61,177.58,3.25]
[1752971886708,1.89266159,177.61,177.54,0.03703436]
[1752971886901,2.99,177.59,177.55,3.25]
[1752971887308,2.99,177.56,177.49,3.25]
[1752971887508,2.99,177.52,177.49,3.25]
[1752971887905,4.88266159,177.51,177.49,0.03652944]
[1752971888106,8.6207,177.5,177.49,3.28652944]
[1752971888411,2.99,177.5,177.49,0.03652944]
[1752971888611,2.99,177.5,177.49,3.28652944]
[1752971888815,1.89266159,177.51,177.49,0.03652944]
[1752971889022,4.88266159,177.51,177.5,3.25]
[1752971890314,1.89266159,177.51,177.5,3.25]
[1752971892112,2.99,177.53,177.5,3.25]
[1752971892415,1.89266159,177.54,177.5,3.25]
[1752971892619,4.88266159,177.54,177.5,3.25]
[1752971892819,10.51216159,177.54,177.5,3.25]
[1752971893018,2.99,177.53,177.5,3.25]
[1752971893320,2.99,177.53,177.5,3.29242616]
[1752971895420,1.89266159,177.52,177.5,0.04242616]
[1752971895720,2.99,177.51,177.5,3.29242616]
[1752971895918,1.89266159,177.52,177.5,0.04242616]
[1752971896119,4.88266159,177.52,177.51,3.25]
[1752971897420,1.89266159,177.53,177.51,3.25]
[1752971897622,4.88266159,177.53,177.52,3.25]
[1752971898023,10.51196159,177.55,177.52,3.25]
[1752971898420,4.88266159,177.55,177.52,3.25]
[1752971898817,4.88266159,177.55,177.52,3.28821248]
[1752971899224,2.99,177.54,177.52,3.28821248]
[1752971899433,8.6194,177.54,177.52,3.28821248]
[1752971900124,8.6194,177.54,177.52,0.03821248]
[1752971900434,8.6194,177.54,177.53,3.03]
[1752971901623,8.6194,177.54,177.52,0.03821248]
[1752971901825,8.6998,177.53,177.52,0.03821248]
[1752971903024,10.59246159,177.53,177.52,0.03821248]
[1752971904023,5.6309,177.5,177.48,3.03]
[1752971904319,3.07,177.49,177.48,3.03]
[1752971904824,5.6309,177.5,177.43,693.03133207]
[1752971904825,3.07,177.5,177.43,693.03133207]
[1752971905025,3.07,177.5,177.44,3.03]
[1752971905526,0.03765169,177.48,177.46,3.03]
[1752971906819,3.10765169,177.48,177.44,3.03]
[1752971907429,0.03765169,177.48,177.45,3.03]
[1752971907829,0.03765169,177.48,177.47,5.6317]
[1752971908031,0.03765169,177.48,177.47,3.03]
[1752971909729,0.03765169,177.48,177.47,8.6617]
[1752971910334,0.03765169,177.48,177.47,3.03]
[1752971910536,5.00031328,177.48,177.47,3.03]
[1752971910835,3.07,177.47,177.46,3.03]
[1752971911338,3.07,177.46,177.45,3.03]
[1752971911535,3.07,177.46,177.43,214.22133207]
[1752971911734,3.07,177.45,177.44,3.03]
[1752971912734,1.93031328,177.48,177.44,3.03]
[1752971912938,3.07,177.47,177.44,3.03]
[1752971913138,3.07,177.47,177.43,211.19133207]
[1752971913329,0.03765169,177.48,177.45,3.03]
[1752971913834,0.03765169,177.48,177.43,216.82413207]
[1752971914039,3.07,177.46,177.45,3.03]
[1752971914439,0.03765169,177.48,177.45,3.03]
[1752971914641,3.07,177.47,177.46,3.03]
[1752971915543,10.59436159,177.47,177.44,3.03]
[1752971915744,1.89266159,177.47,177.44,3.03]
[1752971915945,3.07,177.45,177.44,3.03]
[1752971917046,1.89266159,177.47,177.44,3.03]
[1752971917250,3.07,177.46,177.45,3.03]
[1752971918145,4.96266159,177.47,177.46,3.03]
[1752971918352,10.59436159,177.47,177.43,211.19133207]
[1752971918653,10.59436159,177.47,177.44,3.03]
[1752971919550,4.96266159,177.47,177.44,3.03]
[1752971920169,3.07,177.46,177.44,3.03]
[1752971920350,3.07,177.46,177.45,3.03]
[1752971921250,8.702,177.46,177.45,3.03]
[1752971921450,3.07,177.46,177.45,3.03]
[1752971922555,7.52446159,177.47,177.43,211.19133207]
[1752971922854,10.59446159,177.47,177.46,3.03]
[1752971924856,8.7018,177.47,177.46,3.03]
[1752971925060,10.59446159,177.47,177.46,3.03]
[1752971927460,5.6318,177.47,177.46,3.03]
[1752971928060,8.7018,177.47,177.46,3.03]
[1752971928468,7.56181328,177.48,177.46,3.03]
[1752971928761,10.63181328,177.48,177.46,3.03]
[1752971929159,0.03765169,177.48,177.46,3.03]
[1752971929561,1.89266159,177.47,177.46,3.03]
[1752971930163,5.66925169,177.48,177.46,3.03]
[1752971930363,7.56191328,177.48,177.46,3.03]
[1752971933066,3.22,177.47,177.44,3.03]
[1752971933365,3.22,177.47,177.43,211.19133207]
[1752971933366,3.22,177.46,177.45,3.03]
[1752971934062,5.6317,177.47,177.45,3.03]
[1752971934269,5.66915169,177.48,177.45,3.03]
[1752971938266,5.6317,177.47,177.45,3.03]
[1752971938467,8.8517,177.47,177.45,3.03]
[1752971939460,5.632,177.46,177.45,3.03]
[1752971939871,3.22,177.46,177.43,211.19133207]
[1752971940064,5.11266159,177.46,177.44,3.03]
[1752971940267,1.89266159,177.46,177.44,3.03]
[1752971940667,10.74486159,177.46,177.44,3.03]
[1752971940862,0.03765169,177.48,177.44,3.03]
[1752971941062,0.03765169,177.48,177.44,106.03]
[1752971941266,0.03765169,177.48,177.45,3.03]
[1752971941869,5.66915169,177.48,177.45,3.03]
[1752971943267,5.6317,177.47,177.45,3.03]
[1752971943470,8.8517,177.47,177.45,3.03]
[1752971943672,3.25765169,177.48,177.45,3.03]
[1752971944268,8.88915169,177.48,177.45,3.03]
[1752971944775,5.6317,177.47,177.45,3.03]
[1752971945772,3.22,177.46,177.45,3.03]
[1752971945980,5.6317,177.47,177.45,3.03]
[1752971947077,5.632,177.46,177.45,3.03]
[1752971949073,8.852,177.46,177.45,3.03]
[1752971949476,5.632,177.46,177.45,3.03]
[1752971949782,0.03765169,177.48,177.45,3.03]
[1752971949978,0.03765169,177.48,177.46,102.98]
[1752971950176,5.66895169,177.48,177.47,3.03]
[1752971950574,0.03765169,177.48,177.47,3.03]
[1752971955479,5.66895169,177.48,177.47,3.03]
[1752971955690,0.03765169,177.48,177.47,3.03]
[1752971956790,9.54919156,177.56,177.47,3.03]
[1752971957089,1.89266159,177.55,177.49,3.03]
[1752971957293,5.6299,177.53,177.49,3.03]
[1752971957592,3.22,177.53,177.49,3.03]
[1752971957799,9.54919156,177.57,177.49,3.03]
[1752971957995,3.22,177.54,177.49,3.03]
[1752971958296,3.22,177.56,177.49,3.07256965]
[1752971958496,1.89266159,177.55,177.49,3.07256965]
[1752971958691,5.11266159,177.55,177.49,8.70336965]
[1752971958890,5.11266159,177.55,177.5,3.03]
[1752971959185,3.22,177.54,177.5,3.03]
[1752971959404,5.6295,177.54,177.5,3.03]
[1752971959596,3.22,177.53,177.5,3.03]
[1752971962295,8.8498,177.53,177.5,3.03]
[1752971962514,3.3,177.52,177.5,3.03]
[1752971962692,3.3,177.53,177.5,3.03]
[1752971963302,5.6296,177.54,177.5,3.03]
[1752971963492,5.19266159,177.55,177.5,3.03]
[1752971963898,8.9292,177.55,177.5,3.03]
[1752971964300,5.6295,177.54,177.5,3.03]
[1752971964696,1.89266159,177.55,177.5,3.03]
[1752971965101,3.3,177.54,177.5,3.03]
[1752971965604,8.9295,177.54,177.5,3.03]
[1752971966896,3.3,177.5,177.49,0.04256965]
[1752971967607,8.9307,177.5,177.49,0.04256965]
[1752971967897,3.3,177.46,177.44,3.19]
[1752971968497,3.3,177.46,177.45,3.19]
[1752971968805,8.932,177.46,177.45,3.19]
[1752971969194,5.632,177.46,177.43,211.19133207]
[1752971969498,10.82496159,177.45,177.44,3.19]
[1752971970199,8.9326,177.44,177.43,211.19133207]
[1752971970403,8.9326,177.44,177.43,214.38133207]
[1752971970604,3.3,177.44,177.43,214.38133207]
[1752971975902,8.9326,177.44,177.43,211.19133207]
[1752971976608,8.9326,177.44,177.43,214.38133207]
[1752971976918,3.3,177.44,177.43,3.19]
[1752971977101,5.19266159,177.44,177.43,3.19]
[1752971977903,5.19266159,177.44,177.39,103.2]
[1752971978107,3.3,177.42,177.41,3.19]
[1752971978307,3.3,177.41,177.38,3.19]
[1752971978512,3.3,177.39,177.38,3.19]
[1752971979104,1.89266159,177.4,177.38,3.19]
[1752971979308,5.19266159,177.4,177.39,3.19]
[1752971980017,0.04263883,177.41,177.39,3.19]
[1752971980214,3.34263883,177.41,177.39,3.19]
[1752971980505,3.34263883,177.41,177.37,3.19]
[1752971980699,3.34263883,177.41,177.38,3.19]
[1752971981311,3.3,177.4,177.38,3.19]
[1752971981501,3.3,177.4,177.39,3.19]
[1752971982600,3.3,177.39,177.36,3.19]
[1752971983411,1.89266159,177.4,177.36,3.19]
[1752971983606,5.19266159,177.4,177.36,3.19]
[1752971984711,3.3,177.38,177.37,3.19]
[1752971985707,3.3,177.38,177.29,5.08266159]
[1752971985708,5.19266159,177.38,177.29,5.08266159]
[1752971986010,3.3,177.34,177.31,3.19]
[1752971986517,3.33676361,177.34,177.31,3.19]
[1752971988213,1.9294252,177.34,177.31,3.19]
[1752971988414,1.9294252,177.34,177.26,339.52611023]
[1752971988415,1.89266159,177.32,177.26,337.63344864]
[1752971988611,3.3,177.31,177.3,3.19]
[1752971989612,8.9367,177.31,177.3,3.19]
[1752971989916,3.3,177.29,177.28,3.19]
[1752971991018,0.04331126,177.3,177.28,3.19]
[1752971991217,3.09331126,177.3,177.29,3.23]
[1752971992717,0.04331126,177.3,177.29,3.23]
[1752971994314,3.09331126,177.3,177.29,3.23]
[1752971995421,0.04331126,177.3,177.29,3.23]
[1752971996017,3.09331126,177.3,177.29,3.23]
[1752971997021,1.93597285,177.3,177.27,103.32]
[1752971997217,1.93597285,177.3,177.28,3.23]
[1752971997426,4.98597285,177.3,177.28,3.23]
[1752971997723,4.98597285,177.3,177.29,3.23]
[1752971998118,1.93597285,177.3,177.28,3.23]
[1752971998323,1.93597285,177.3,177.27,103.32]
[1752971998324,3.05,177.29,177.27,103.32]
[1752971998524,3.05,177.29,177.26,337.63344864]
[1752971998718,3.05,177.29,177.27,3.23]
[1752971998918,3.05,177.28,177.27,3.23]
[1752972000225,1.93597285,177.3,177.27,3.23]
[1752972000425,0.04331126,177.3,177.27,3.23]
[1752972001227,0.04331126,177.3,177.27,106.65]
[1752972001424,3.09331126,177.3,177.28,3.23]
[1752972001626,3.09331126,177.3,177.29,3.23]
[1752972001827,3.09331126,177.3,177.27,3.23]
[1752972002019,1.89266159,177.28,177.26,337.63344864]
[1752972002224,3.05,177.28,177.25,103.42]
[1752972002424,4.94266159,177.28,177.25,103.42]
[1752972002626,1.89266159,177.28,177.25,103.42]
[1752972002824,1.89266159,177.28,177.26,3.23]
[1752972003225,3.09331126,177.3,177.26,3.23]
[1752972003427,3.05,177.29,177.26,3.23]
[1752972005633,8.6874,177.29,177.26,3.23]
[1752972005927,3.05,177.29,177.26,3.23]
[1752972006127,4.94266159,177.29,177.26,3.23]
[1752972006525,5.6377,177.28,177.26,3.23]
[1752972006932,8.6877,177.28,177.26,3.23]
[1752972007123,5.638,177.27,177.26,3.23]
[1752972007631,5.638,177.27,177.25,103.42]
[1752972007632,8.6883,177.26,177.25,106.65]
[1752972007820,8.6883,177.26,177.25,3.23]
[1752972008024,5.6389,177.25,177.23,3.23]
[1752972008230,8.6889,177.25,177.22,103.48]
[1752972008431,8.6889,177.25,177.24,3.23]
[1752972008825,8.72680434,177.25,177.24,3.23]
[1752972009429,10.61946593,177.25,177.24,3.23]
[1752972010224,5.6394,177.23,177.22,3.23]
[1752972010629,3.05,177.24,177.2,3.23]
[1752972010834,0.03790434,177.25,177.2,3.23]
[1752972011128,0.03790434,177.25,177.22,3.23]
[1752972011833,0.03790434,177.25,177.2,3.23]
[1752972012334,5.639,177.24,177.2,8.87]
[1752972012534,0.03790434,177.25,177.2,3.23]
[1752972013233,5.67670434,177.25,177.23,3.23]
[1752972014840,0.03790434,177.25,177.23,3.23]
[1752972015338,0.03790434,177.25,177.24,5.639]
[1752972015532,0.03790434,177.25,177.24,8.869]
[1752972020650,1.89266159,177.29,177.26,5.6381]
[1752972020937,3.03,177.32,177.27,3.23]
[1752972021734,5.6368,177.31,177.28,5.6375]
[1752972021941,5.6368,177.31,177.29,3.23]
[1752972022142,3.03,177.32,177.29,3.23]
[1752972022342,5.637,177.31,177.29,3.23]
[1752972022542,8.667,177.31,177.29,3.23]
[1752972022737,3.03,177.31,177.29,3.23]
[1752972023846,8.6669,177.31,177.29,3.23]
[1752972025252,3.03,177.31,177.29,8.8673]
[1752972025448,3.03,177.32,177.29,3.23]
[1752972025657,3.03,177.33,177.29,3.23]
[1752972025851,3.03,177.33,177.31,5.6367]
[1752972026048,3.03,177.33,177.32,3.23]
[1752972026951,1.89266159,177.35,177.29,3.23]
[1752972027163,3.03,177.34,177.28,0.03824189]
[1752972027352,3.03,177.34,177.3,3.23]
[1752972027856,5.6363,177.33,177.3,3.23]
[1752972028057,3.03,177.31,177.3,3.23]
[1752972028558,5.6365,177.32,177.29,3.23]
[1752972028757,3.03,177.3,177.29,3.23]
[1752972030861,3.03,177.32,177.3,3.23]
[1752972031656,3.03,177.32,177.31,3.23]
[1752972033659,1.89266159,177.35,177.31,3.23]
[1752972033660,3.03,177.34,177.31,3.23]
[1752972034560,8.666,177.34,177.31,3.23]
[1752972034760,3.03,177.34,177.31,3.23]
[1752972035663,3.03,177.34,177.31,8.8667]
[1752972035976,3.03,177.34,177.31,3.23]
[1752972036156,3.03,177.34,177.28,0.03824189]
[1752972036360,3.03,177.34,177.3,3.23]
[1752972036662,3.03,177.33,177.29,5.6372]
[1752972036862,3.03,177.33,177.31,3.23]
[1752972037957,5.6359,177.34,177.31,3.23]
[1752972038158,3.03,177.32,177.31,3.23]
[1752972039955,3.03,177.34,177.31,3.23]
[1752972040159,3.03,177.36,177.31,3.23]
[1752972040360,3.03,177.35,177.31,3.23]
[1752972040762,3.03,177.34,177.32,3.23]
[1752972042465,3.03,177.34,177.31,0.03812589]
[1752972042659,3.03,177.34,177.33,3.23]
[1752972042863,3.03,177.34,177.31,0.03812589]
[1752972043253,3.03,177.34,177.32,3.23]
[1752972044065,8.6663,177.33,177.32,3.23]
[1752972048067,8.6663,177.33,177.31,0.03812589]
[1752972048068,8.6664,177.32,177.31,0.03812589]
[1752972048572,8.6664,177.32,177.31,3.26812589]
[1752972049257,3.03,177.32,177.31,3.26812589]
[1752972050066,8.6662,177.33,177.31,3.26812589]
[1752972051568,3.08,177.34,177.31,3.26812589]
[1752972051767,3.08,177.35,177.31,3.26812589]
[1752972052170,8.7156,177.35,177.31,3.26812589]
[1752972052366,1.89266159,177.36,177.31,3.26812589]
[1752972052367,3.08,177.34,177.31,3.26812589]
[1752972052672,1.89266159,177.36,177.31,3.26812589]
[1752972052873,3.08,177.33,177.31,3.26812589]
[1752972054479,5.636,177.34,177.31,3.26812589]
[1752972054773,8.716,177.34,177.31,3.26812589]
[1752972054981,3.08,177.34,177.31,5.67482589]
[1752972055273,3.08,177.34,177.32,3.29]
[1752972056475,8.7158,177.34,177.33,3.29]
[1752972058878,3.08,177.34,177.33,3.29]
[1752972059073,114.5071,177.42,177.33,3.29]
[1752972059074,1.89266159,177.38,177.33,3.29]
[1752972059273,3.08,177.37,177.33,3.29]
[1752972059872,8.715,177.37,177.33,8.9259]
[1752972060176,8.715,177.37,177.34,3.29]
[1752972060874,8.715,177.37,177.34,3.32734798]
[1752972061676,3.08,177.37,177.34,5.67314798]
[1752972061876,3.08,177.37,177.35,3.29]
[1752972062382,4.97266159,177.4,177.35,3.29]
[1752972062572,3.08,177.39,177.35,3.29]
[1752972062868,8.7142,177.39,177.36,3.29]
[1752972064579,5.6345,177.38,177.36,3.29]
[1752972064875,8.7145,177.38,177.36,3.29]
[1752972069176,5.6345,177.38,177.36,3.29]
[1752972070078,8.7145,177.38,177.36,3.29]
[1752972071180,5.6343,177.39,177.36,3.29]
[1752972071381,8.7143,177.39,177.36,3.29]
[1752972071579,5.6346,177.38,177.36,3.29]
[1752972072476,8.7146,177.38,177.36,3.29]
[1752972072981,3.08,177.38,177.36,3.29]
[1752972073878,5.6344,177.39,177.36,3.29]
[1752972074080,8.7144,177.39,177.36,3.29]
[1752972074580,3.08,177.38,177.36,3.29]
[1752972074883,8.7145,177.38,177.36,3.29]
[1752972075275,3.08,177.38,177.36,3.29]
[1752972075678,8.7143,177.39,177.36,3.29]
[1752972077083,1.20841783,177.38,177.36,3.29]
[1752972079785,6.84301783,177.38,177.36,3.29]
[1752972081186,5.6348,177.37,177.36,3.29]
[1752972081987,9.93311783,177.38,177.36,3.29]
[1752972083484,9.93301783,177.38,177.36,3.29]
[1752972083883,3.09,177.37,177.35,3.27]
[1752972084091,9.93391783,177.35,177.34,0.03734798]
[1752972086786,3.09,177.3,177.28,3.27]
[1752972087093,3.09,177.29,177.28,3.27]
[1752972087592,1.89029836,177.3,177.28,3.27]
[1752972087791,112.59440211,177.38,177.28,3.27]
[1752972087792,3.09,177.31,177.28,3.27]
[1752972087991,3.09,177.3,177.28,3.27]
[1752972088692,5.68016944,177.31,177.28,3.27]
[1752972088889,8.77016944,177.31,177.28,3.27]
[1752972089089,3.09,177.3,177.28,3.27]
[1752972089389,5.68016944,177.31,177.28,3.27]
[1752972089592,8.77016944,177.31,177.28,3.27]
[1752972089992,0.04336944,177.31,177.3,3.27]
[1752972090993,3.13336944,177.31,177.3,3.27]
[1752972091195,0.04336944,177.31,177.3,3.27]
[1752972092297,3.13336944,177.31,177.3,3.27]
[1752972092990,0.04336944,177.31,177.3,3.27]
[1752972094596,3.13336944,177.31,177.3,3.27]
[1752972095191,8.77006944,177.31,177.3,3.27]
[1752972095398,3.09,177.3,177.28,3.27]
[1752972095796,0.04336944,177.31,177.28,3.27]
[1752972095797,3.09,177.29,177.28,3.27]
[1752972096195,3.09,177.29,177.27,207.27746443]
[1752972096396,5.6377,177.28,177.27,3.27]
[1752972096700,3.09,177.27,177.25,3.27]
[1752972096900,3.09,177.26,177.23,103.14]
[1752972097101,3.09,177.25,177.23,103.14]
[1752972097399,3.09,177.24,177.23,103.14]
[1752972097595,3.09,177.24,177.23,3.27]
[1752972098000,8.7288,177.25,177.23,3.27]
[1752972099593,3.09,177.23,177.22,3.27]
[1752972099794,0.03974753,177.26,177.22,3.27]